fUSD/lending_fUSD_20250215
["ID","MTS","AMOUNT","RATE_DAILY","PERIOD"]
[353180053,1739633445234,-493.38970131,0.00010958,2]
[353180055,1739633445243,-515.30548674,0.00010958,2]
[353180057,1739633445253,-500.0,0.00010958,2]
[353180059,1739633445263,-791.38,0.00010958,2]
[353180061,1739633445274,-500.0,0.00010958,2]
[353180063,1739633445284,-500.0,0.00010958,2]
[353180065,1739633445293,-500.0,0.00010958,2]
[353180067,1739633445302,-650.74,0.00010958,2]
[353180069,1739633445312,-500.0,0.00010958,2]
[353180071,1739633445321,-500.0,0.00010958,2]
[353180073,1739633445330,-1119.64,0.00010958,2]
[353180075,1739633445340,-500.0,0.00010958,2]
[353180076,1739633445350,-500.0,0.00010958,2]
[353180079,1739633445360,-500.0,0.00010958,2]
[353180081,1739633445370,-500.0,0.00010958,2]
[353180082,1739633445382,-1208.45,0.00010958,2]
[353180084,1739633445391,-500.0,0.00010958,2]
[353180086,1739633445401,-500.0,0.00010958,2]
[353180088,1739633445410,-500.0,0.00010958,2]
[353180090,1739633445420,-500.0,0.00010958,2]
[353180092,1739633445430,-352.9234566,0.00010958,2]
[353180094,1739633445439,-500.0,0.00010958,2]
[353180096,1739633445448,-500.0,0.00010958,2]
[353180098,1739633445458,-500.0,0.00010958,2]
[353180100,1739633445468,-500.0,0.00010958,2]
[353180102,1739633445478,-1000.0,0.00010958,2]
[353180104,1739633445488,-984.9,0.00010958,2]
[353180106,1739633445497,-500.0,0.00010958,2]
[353180108,1739633445507,-508.87211195,0.00010958,2]
[353180110,1739633445516,-500.0,0.00010958,2]
[353180112,1739633445526,-500.0,0.00010958,2]
[353180114,1739633445535,-551.33,0.00010958,2]
[353180116,1739633445543,-500.0,0.00010958,2]
[353180118,1739633445553,-500.0,0.00010958,2]
[353180120,1739633445562,-500.0,0.00010958,2]
[353180122,1739633445571,-349.71723787,0.00010958,2]
[353180124,1739633445581,-504.56440985,0.00010958,2]
[353180126,1739633445590,-683.21,0.00010958,2]
[353180128,1739633445600,-500.0,0.00010958,2]
[353180130,1739633445609,-1060.36,0.00010958,2]
[353180132,1739633445619,-1302.51,0.00010958,2]
[353180134,1739633445630,-500.0,0.00010958,2]
[353180136,1739633445639,-500.0,0.00010958,2]
[353180138,1739633445649,-501.8188706,0.00010958,2]
[353180140,1739633445658,-1470.54,0.00010958,2]
[353180142,1739633445667,-513.52843096,0.00010958,2]
[353180144,1739633445676,-504.78926002,0.00010958,2]
[353180146,1739633445685,-556.3,0.00010958,2]
[353180148,1739633445695,-500.0,0.00010958,2]
[353180150,1739633445704,-519.86858643,0.00010958,2]
[353180152,1739633445714,-500.0,0.00010958,2]
[353180154,1739633445723,-500.0,0.00010958,2]
[353180156,1739633445732,-1163.87,0.00010958,2]
[353180158,1739633445742,-500.0,0.00010958,2]
[353180160,1739633445751,-500.0,0.00010958,2]
[353180161,1739633445761,-1230.12,0.00010958,2]
[353180163,1739633445770,-782.81,0.00010958,2]
[353180165,1739633445779,-500.0,0.00010958,2]
[353180167,1739633445789,-500.0,0.00010958,2]
[353180169,1739633445798,-500.0,0.00010958,2]
[353180171,1739633445807,-990.86,0.00010958,2]
[353180173,1739633445816,-1438.2,0.00010958,2]
[353180175,1739633445825,-602.54,0.00010958,2]
[353180177,1739633445835,-509.89422423,0.00010958,2]
[353180179,1739633445843,-500.0,0.00010958,2]
[353180181,1739633445853,-2377.82,0.00010958,2]
[353180183,1739633445863,-972.44,0.00010958,2]
[353180185,1739633445873,-500.0,0.00010958,2]
[353180187,1739633445882,-625.41,0.00010958,2]
[353180189,1739633445895,-500.0,0.00010958,2]
[353180191,1739633445905,-500.0,0.00010958,2]
[353180193,1739633445914,-500.0,0.00010958,2]
[353180195,1739633445923,-925.82,0.00010958,2]
[353180197,1739633445933,-500.0,0.00010958,2]
[353180199,1739633445944,-500.0,0.00010958,2]
[353180201,1739633445954,-1079.65,0.00010958,2]
[353180203,1739633445969,-500.0,0.00010958,2]
[353180205,1739633445979,-500.0,0.00010958,2]
[353180207,1739633445989,-500.0,0.00010958,2]
[353180209,1739633445998,-500.0,0.00010958,2]
[353180211,1739633446010,-1568.34,0.00010958,2]
[353180214,1739633446020,-500.0,0.00010958,2]
[353180215,1739633446029,-500.0,0.00010958,2]
[353180218,1739633446040,-500.0,0.00010958,2]
[353180220,1739633446050,-500.0,0.00010958,2]
[353180222,1739633446060,-719.25,0.00010958,2]
[353180224,1739633446069,-565.39511532,0.00010958,2]
[353180226,1739633446079,-500.0,0.00010958,2]
[353180228,1739633446088,-500.0,0.00010958,2]
[353180230,1739633446098,-946.14,0.00010958,2]
[353180232,1739633446107,-1064.58,0.00010958,2]
[353180234,1739633446117,-1584.24,0.00010958,2]
[353180236,1739633446127,-500.0,0.00010958,2]
[353180238,1739633446137,-882.76,0.00010958,2]
[353180240,1739633446146,-500.0,0.00010958,2]
[353180243,1739633446156,-500.0,0.00010958,2]
[353180247,1739633446166,-500.0,0.00010958,2]
[353180249,1739633446175,-526.95,0.00010958,2]
[353180253,1739633446185,-500.0,0.00010958,2]
[353180254,1739633446194,-908.68,0.00010958,2]
[353180256,1739633446204,-1200.94,0.00010958,2]
[353180258,1739633446213,-503.52,0.00010958,2]
[353180260,1739633446223,-500.0,0.00010958,2]
[353180262,1739633446232,-503.8197294,0.00010958,7]
[353180264,1739633446242,-500.0,0.00010958,2]
[353180265,1739633446252,-500.0,0.00010958,2]
[353180266,1739633446262,-500.0,0.00010958,2]
[353180267,1739633446271,-500.0,0.00010958,2]
[353180268,1739633446282,-500.0,0.00010958,2]
[353180269,1739633446291,-500.0,0.00010958,2]
[353180270,1739633446301,-598.4,0.00010958,2]
[353180271,1739633446310,-542.58,0.00010958,2]
[353180272,1739633446320,-773.97,0.00010958,2]
[353180274,1739633446329,-500.0,0.00010958,2]
[353180276,1739633446339,-872.16,0.00010958,2]
[353180278,1739633446349,-500.0,0.00010958,2]
[353180280,1739633446358,-500.0,0.00010958,2]
[353180282,1739633446368,-1118.02,0.00010958,2]
[353180284,1739633446378,-886.33,0.00010958,2]
[353180286,1739633446387,-500.0,0.00010958,2]
[353180288,1739633446397,-857.2,0.00010958,2]
[353180290,1739633446406,-586.42,0.00010958,2]
[353180292,1739633446416,-1003.98,0.00010958,2]
[353180294,1739633446425,-520.2,0.00010958,2]
[353180296,1739633446435,-1881.29,0.00010958,2]
[353180298,1739633446444,-500.0,0.00010958,2]
[353180300,1739633446454,-1153.71,0.00010958,2]
[353180302,1739633446464,-1785.75,0.00010958,2]
[353180304,1739633446474,-500.0,0.00010958,2]
[353180306,1739633446483,-2335.78,0.00010958,2]
[353180308,1739633446492,-500.0,0.00010958,2]
[353180310,1739633446501,-1392.09,0.00010958,2]
[353180312,1739633446510,-500.0,0.00010958,2]
[353180313,1739633446519,-856.74,0.00010958,2]
[353180314,1739633446529,-1831.21,0.00010958,2]
[353180315,1739633446538,-2330.57,0.00010958,2]
[353180316,1739633446548,-500.0,0.00010958,2]
[353180317,1739633446557,-500.0,0.00010958,2]
[353180318,1739633446566,-500.0,0.00010958,2]
[353180319,1739633446576,-1747.03,0.00010958,2]
[353180320,1739633446585,-500.0,0.00010958,2]
[353180321,1739633446595,-500.0,0.00010958,2]
[353180322,1739633446604,-1300.76,0.00010958,2]
[353180323,1739633446614,-1708.71,0.00010958,2]
[353180324,1739633446623,-1241.13,0.00010958,2]
[353180325,1739633446632,-500.0,0.00010958,2]
[353180326,1739633446641,-1561.63,0.00010958,2]
[353180327,1739633446651,-5620.84,0.00010958,2]
[353180328,1739633446661,-1227.52,0.00010958,2]
[353180329,1739633446670,-500.0,0.00010958,2]
[353180330,1739633446680,-500.0,0.00010958,2]
[353180331,1739633446689,-500.0,0.00010958,2]
[353180332,1739633446698,-1410.91,0.00010958,2]
[353180334,1739633446709,-500.0,0.00010958,2]
[353180335,1739633446718,-500.0,0.00010958,2]
[353180337,1739633446728,-500.0,0.00010958,2]
[353180339,1739633446738,-500.0,0.00010958,2]
[353180340,1739633446750,-1549.53,0.00010958,2]
[353180341,1739633446760,-500.0,0.00010958,2]
[353180342,1739633446769,-4415.02,0.00010958,2]
[353180343,1739633446778,-959.75,0.00010958,2]
[353180344,1739633446788,-2304.54,0.00010958,2]
[353180345,1739633446797,-500.0,0.00010958,2]
[353180346,1739633446806,-1027.77,0.00010958,2]
[353180347,1739633446815,-500.0,0.00010958,2]
[353180348,1739633446824,-500.0,0.00010958,2]
[353180349,1739633446833,-500.0,0.00010958,2]
[353180350,1739633446843,-500.0,0.00010958,2]
[353180351,1739633446852,-1461.42,0.00010958,2]
[353180352,1739633446862,-773.76,0.00010958,2]
[353180353,1739633446871,-1848.49,0.00010958,2]
[353180354,1739633446881,-500.0,0.00010958,2]
[353180355,1739633446890,-927.7,0.00010958,2]
[353180356,1739633446900,-1929.14,0.00010958,2]
[353180357,1739633446910,-1137.56,0.00010958,2]
[353180358,1739633446919,-500.0,0.00010958,2]
[353180359,1739633446928,-500.0,0.00010958,2]
[353180360,1739633446938,-2196.08,0.00010958,2]
[353180361,1739633446947,-500.0,0.00010958,2]
[353180362,1739633446960,-1293.37,0.00010958,2]
[353180363,1739633446969,-1378.56,0.00010958,2]
[353180364,1739633446979,-957.44,0.00010958,2]
[353180365,1739633446990,-878.64,0.00010958,2]
[353180366,1739633447000,-1063.0,0.00010958,2]
[353180368,1739633447009,-500.0,0.00010958,2]
[353180370,1739633447019,-500.0,0.00010958,2]
[353180372,1739633447030,-952.66,0.00010958,2]
[353180374,1739633447041,-500.0,0.00010958,2]
[353180376,1739633447050,-2557.32,0.00010958,2]
[353180377,1739633447060,-500.0,0.00010958,2]
[353180378,1739633447070,-500.0,0.00010958,2]
[353180379,1739633447079,-500.0,0.00010958,2]
[353180380,1739633447089,-500.0,0.00010958,2]
[353180381,1739633447098,-531.12984117,0.00010958,2]
[353180383,1739633447108,-500.0,0.00010958,2]
[353180385,1739633447117,-500.0,0.00010958,2]
[353180386,1739633447128,-500.0,0.00010958,2]
[353180388,1739633447137,-500.0,0.00010958,2]
[353180389,1739633447146,-500.0,0.00010958,2]
[353180390,1739633447155,-1630.42,0.00010958,2]
[353180391,1739633447165,-500.0,0.00010958,2]
[353180392,1739633447174,-2368.46,0.00010958,2]
[353180393,1739633447184,-500.0,0.00010958,2]
[353180394,1739633447192,-2348.3,0.00010958,2]
[353180395,1739633447201,-500.0,0.00010958,2]
[353180396,1739633447210,-500.0,0.00010958,2]
[353180397,1739633447219,-705.74,0.00010958,2]
[353180398,1739633447228,-1482.36,0.00010958,2]
[353180399,1739633447238,-500.0,0.00010958,2]
[353180401,1739633447247,-500.0,0.00010958,2]
[353180403,1739633447256,-500.0,0.00010958,2]
[353180404,1739633447266,-812.11,0.00010958,2]
[353180406,1739633447275,-500.0,0.00010958,2]
[353180408,1739633447285,-500.0,0.00010958,2]
[353180409,1739633447295,-500.0,0.00010958,2]
[353180410,1739633447304,-870.28,0.00010958,2]
[353180411,1739633447314,-500.0,0.00010958,2]
[353180412,1739633447323,-1275.87,0.00010958,2]
[353180413,1739633447332,-500.0,0.00010958,2]
[353180414,1739633447342,-1045.08,0.00010958,2]
[353180415,1739633447351,-500.0,0.00010958,2]
[353180416,1739633447361,-500.0,0.00010958,2]
[353180417,1739633447370,-500.0,0.00010958,2]
[353180418,1739633447379,-747.32,0.00010958,2]
[353180419,1739633447389,-500.0,0.00010958,2]
[353180420,1739633447398,-500.0,0.00010958,2]
[353180421,1739633447407,-500.0,0.00010958,2]
[353180422,1739633447416,-1740.39,0.00010958,2]
[353180423,1739633447425,-500.0,0.00010958,2]
[353180424,1739633447435,-500.0,0.00010958,2]
[353180425,1739633447444,-500.0,0.00010958,2]
[353180426,1739633447454,-500.0,0.00010958,2]
[353180427,1739633447463,-500.0,0.00010958,2]
[353180428,1739633447472,-500.0,0.00010958,2]
[353180429,1739633447482,-231.52836721,0.00010958,2]
[353180430,1739633447492,-500.0,0.00010958,2]
[353180431,1739633447501,-500.0,0.00010958,2]
[353180432,1739633447511,-500.0,0.00010958,2]
[353180433,1739633447520,-1007.16,0.00010958,2]
[353180434,1739633447530,-500.0,0.00010958,2]
[353180435,1739633447539,-500.0,0.00010958,2]
[353180436,1739633447549,-500.0,0.00010958,2]
[353180437,1739633447558,-500.0,0.00010958,2]
[353180438,1739633447568,-500.0,0.00010958,2]
[353180439,1739633447578,-969.24,0.00010958,2]
[353180440,1739633447587,-500.0,0.00010958,2]
[353180441,1739633447597,-500.0,0.00010958,2]
[353180442,1739633447606,-857.83,0.00010958,2]
[353180443,1739633447615,-1673.73,0.00010958,2]
[353180444,1739633447626,-500.0,0.00010958,2]
[353180445,1739633447636,-500.0,0.00010958,2]
[353180446,1739633447646,-500.0,0.00010958,2]
[353180447,1739633447655,-500.0,0.00010958,2]
[353180448,1739633447665,-500.0,0.00010958,2]
[353180449,1739633447674,-722.95,0.00010958,2]
[353180450,1739633447684,-1844.49,0.00010958,2]
[353180451,1739633447694,-500.0,0.00010958,2]
[353180452,1739633447703,-500.0,0.00010958,2]
[353180453,1739633447714,-500.0,0.00010958,2]
[353180455,1739633447723,-500.0,0.00010958,2]
[353180457,1739633447732,-500.0,0.00010958,2]
[353180465,1739633447913,-500.0,0.00010958,2]
[353180466,1739633447923,-500.0,0.00010958,2]
[353180467,1739633447933,-500.0,0.00010958,2]
[353180468,1739633447943,-228.46992603,0.00010958,2]
[353180469,1739633447956,-967.61,0.00010958,2]
[353180470,1739633447966,-496.54,0.00010958,2]
[353180471,1739633447976,-500.0,0.00010959,2]
[353180472,1739633447986,-500.0,0.00010959,2]
[353180473,1739633447996,-270.96810329,0.00010959,2]
[353180474,1739633448006,-500.0,0.00010959,2]
[353180475,1739633448016,-269.61938826,0.00010959,2]
[353180476,1739633448029,-500.0,0.00010959,2]
[353180477,1739633448042,-500.0,0.00010959,2]
[353180478,1739633448052,-421.02106236,0.00010959,2]
[353180479,1739633448062,-300.0,0.00010959,2]
[353180480,1739633448073,-500.0,0.00010959,2]
[353180481,1739633448084,-500.0,0.00010959,2]
[353180482,1739633448095,-500.0,0.00010959,2]
[353180483,1739633448105,-500.0,0.00010959,2]
[353180484,1739633448115,-500.0,0.00010959,2]
[353180485,1739633448128,-409.64356582,0.00010959,2]
[353180486,1739633448138,-503.9399804,0.00010959,2]
[353180487,1739633448148,-500.0,0.00010959,2]
[353180488,1739633448158,-500.0,0.00010959,2]
[353180489,1739633448169,-500.0,0.00010959,2]
[353180490,1739633448179,-500.0,0.00010959,2]
[353180491,1739633448189,-500.0,0.00010959,2]
[353180492,1739633448200,-500.0,0.00010959,2]
[353180493,1739633448210,-500.0,0.00010959,2]
[353180494,1739633448219,-500.0,0.00010959,2]
[353180495,1739633448229,-500.0,0.00010959,2]
[353180496,1739633448239,-500.0,0.00010959,2]
[353180497,1739633448249,-500.0,0.00010959,2]
[353180498,1739633448259,-500.0,0.00010959,2]
[353180499,1739633448270,-500.0,0.00010959,2]
[353180500,1739633448280,-500.0,0.00010959,2]
[353180501,1739633448291,-500.0,0.00010959,2]
[353180502,1739633448302,-500.0,0.00010959,2]
[353180503,1739633448312,-500.0,0.00010959,2]
[353180504,1739633448323,-500.0,0.00010959,2]
[353180505,1739633448333,-186.04478148,0.00010959,2]
[353180506,1739633448343,-500.0,0.00010959,2]
[353180507,1739633448354,-500.0,0.00010959,2]
[353180508,1739633448364,-500.0,0.00010959,2]
[353180509,1739633448375,-500.0,0.00010959,2]
[353180510,1739633448388,-500.0,0.00010959,2]
[353180511,1739633448398,-500.0,0.00010959,2]
[353180512,1739633448408,-500.0,0.00010959,2]
[353180513,1739633448418,-500.0,0.00010959,2]
[353180514,1739633448428,-573.80723182,0.00010959,2]
[353180515,1739633448438,-500.0,0.00010959,2]
[353180516,1739633448447,-500.0,0.00010959,2]
[353180517,1739633448457,-500.0,0.00010959,2]
[353180518,1739633448466,-500.0,0.00010959,2]
[353180519,1739633448476,-500.0,0.00010959,2]
[353180520,1739633448486,-500.0,0.00010959,2]
[353180521,1739633448497,-500.0,0.00010959,2]
[353180522,1739633448509,-500.0,0.00010959,2]
[353180523,1739633448520,-500.0,0.00010959,2]
[353180524,1739633448530,-500.0,0.00010959,2]
[353180525,1739633448541,-500.0,0.00010959,2]
[353180526,1739633448552,-500.0,0.00010959,2]
[353180527,1739633448561,-500.0,0.00010959,2]
[353180528,1739633448571,-500.0,0.00010959,2]
[353180529,1739633448581,-500.0,0.00010959,2]
[353180530,1739633448591,-502.80505617,0.00010959,2]
[353180531,1739633448602,-500.0,0.00010959,2]
[353180532,1739633448613,-213.11,0.00010959,2]
[353180533,1739633448622,-500.0,0.00010959,2]
[353180534,1739633448633,-500.0,0.00010959,2]
[353180535,1739633448643,-500.0,0.00010959,2]
[353180536,1739633448654,-505.96579421,0.00010959,2]
[353180537,1739633448665,-500.0,0.00010959,2]
[353180538,1739633448675,-630.05,0.00010959,2]
[353180539,1739633448686,-500.0,0.00010959,2]
[353180540,1739633448695,-500.0,0.00010959,2]
[353180541,1739633448705,-500.0,0.00010959,2]
[353180542,1739633448714,-500.0,0.00010959,2]
[353180543,1739633448723,-500.0,0.00010959,2]
[353180544,1739633448732,-507.83999728,0.00010959,2]
[353180545,1739633448742,-500.0,0.00010959,2]
[353180546,1739633448752,-500.0,0.00010959,2]
[353180547,1739633448763,-500.0,0.00010959,2]
[353180548,1739633448772,-502.85360559,0.00010959,2]
[353180549,1739633448782,-503.59384647,0.00010959,2]
[353180550,1739633448792,-542.42,0.00010959,2]
[353180551,1739633448803,-500.0,0.00010959,2]
[353180552,1739633448814,-500.0,0.00010959,2]
[353180553,1739633448825,-500.0,0.00010959,2]
[353180554,1739633448835,-500.0,0.00010959,2]
[353180555,1739633448845,-151.0,0.00010959,2]
[353180556,1739633448855,-300.0,0.00010959,2]
[353180557,1739633448865,-200.0,0.0001096,2]
[353180558,1739633448878,-200.0,0.0001096,2]
[353180559,1739633448888,-500.0,0.0001096,2]
[353180560,1739633448898,-1487.82,0.0001096,2]
[353180561,1739633448907,-1487.82,0.0001096,2]
[353180562,1739633448918,-1487.82,0.0001096,2]
[353180563,1739633448929,-200.0,0.0001096,2]
[353180564,1739633448939,-3478.2019,0.0001096,2]
[353180565,1739633448953,-216.73222432,0.00010961,2]
[353180566,1739633448965,-1702.53251156,0.00010963,3]
[353180567,1739633448976,-500.0,0.00010963,2]
[353180568,1739633448988,-621.61140853,0.00010968,2]
[353180569,1739633448999,-3095.49035081,0.00010983,2]
[353180570,1739633449009,-200.0,0.00011,2]
[353180571,1739633449019,-200.0,0.00011,3]
[353180572,1739633449030,-200.0,0.00011,2]
[353180573,1739633449043,-200.0,0.00011,2]
[353180574,1739633449054,-1254.0,0.00011,2]
[353180575,1739633449064,-22240.49315233,0.00011024,2]
[353180576,1739633449075,-501.29771038,0.0001104,2]
[353180577,1739633449086,-500.0,0.0001104,2]
[353180578,1739633449096,-500.0,0.0001104,2]
[353180579,1739633449106,-371.49346741,0.0001104,2]
[353180580,1739633449116,-1487.82,0.0001104,2]
[353180581,1739633449126,-500.0,0.0001104,2]
[353180582,1739633449138,-925.82,0.0001104,2]
[353180583,1739633449148,-2000.0,0.0001104,2]
[353180584,1739633449158,-2000.0,0.0001104,2]
[353180585,1739633449168,-2000.0,0.0001104,2]
[353180586,1739633449177,-2000.0,0.0001104,2]
[353180587,1739633449187,-432.979803,0.00011041,2]
[353180588,1739633449197,-500.0,0.00011041,2]
[353180589,1739633449207,-500.0,0.00011041,2]
[353180590,1739633449216,-500.0,0.00011041,2]
[353180591,1739633449226,-500.0,0.00011041,2]
[353180592,1739633449235,-500.0,0.00011041,2]
[353180593,1739633449245,-500.0,0.00011041,2]
[353180594,1739633449254,-500.0,0.00011041,2]
[353180595,1739633449263,-500.0,0.00011041,2]
[353180596,1739633449273,-500.0,0.00011041,2]
[353180597,1739633449283,-258.954736,0.00011041,2]
[353180598,1739633449292,-500.0,0.00011041,2]
[353180599,1739633449302,-500.0,0.00011041,2]
[353180600,1739633449312,-500.0,0.00011041,2]
[353180601,1739633449323,-244.32272909,0.00011041,2]
[353180602,1739633449332,-500.0,0.00011041,2]
[353180603,1739633449342,-413.71690094,0.00011041,2]
[353180604,1739633449352,-500.0,0.00011041,2]
[353180605,1739633449361,-500.0,0.00011041,2]
[353180606,1739633449371,-500.0,0.00011041,2]
[353180607,1739633449383,-500.0,0.00011041,2]
[353180608,1739633449393,-500.0,0.00011041,2]
[353180609,1739633449403,-500.0,0.00011041,2]
[353180610,1739633449413,-500.0,0.00011041,2]
[353180611,1739633449423,-504.18766811,0.00011041,2]
[353180612,1739633449433,-500.0,0.00011041,2]
[353180613,1739633449443,-570.32,0.00011041,2]
[353180614,1739633449453,-500.0,0.00011041,2]
[353180615,1739633449462,-500.0,0.00011041,2]
[353180616,1739633449471,-500.0,0.00011041,2]
[353180617,1739633449481,-500.0,0.00011041,2]
[353180618,1739633449491,-500.0,0.00011041,2]
[353180619,1739633449501,-500.0,0.00011041,2]
[353180620,1739633449511,-500.0,0.00011041,2]
[353180621,1739633449520,-500.0,0.00011041,2]
[353180622,1739633449530,-500.0,0.00011041,2]
[353180623,1739633449540,-500.0,0.00011041,2]
[353180624,1739633449550,-151.0,0.00011041,2]
[353180625,1739633449559,-500.0,0.00011041,2]
[353180626,1739633449568,-500.0,0.00011041,2]
[353180627,1739633449578,-500.0,0.00011041,2]
[353180628,1739633449587,-500.0,0.00011041,2]
[353180629,1739633449597,-500.0,0.00011041,2]
[353180630,1739633449606,-500.0,0.00011041,2]
[353180631,1739633449616,-500.0,0.00011041,2]
[353180632,1739633449626,-500.0,0.00011041,2]
[353180633,1739633449637,-500.0,0.00011041,2]
[353180634,1739633449647,-500.0,0.00011041,2]
[353180635,1739633449656,-500.0,0.00011041,2]
[353180636,1739633449666,-500.0,0.00011041,2]
[353180637,1739633449674,-500.0,0.00011041,2]
[353180638,1739633449684,-500.0,0.00011041,2]
[353180639,1739633449693,-500.0,0.00011041,2]
[353180640,1739633449702,-500.0,0.00011041,2]
[353180641,1739633449712,-500.0,0.00011041,2]
[353180642,1739633449722,-500.0,0.00011041,2]
[353180643,1739633449731,-500.0,0.00011041,2]
[353180644,1739633449741,-500.0,0.00011041,2]
[353180645,1739633449750,-500.0,0.00011041,2]
[353180646,1739633449759,-500.0,0.00011041,2]
[353180647,1739633449769,-439.61,0.00011041,2]
[353180648,1739633449779,-500.0,0.00011041,2]
[353180649,1739633449788,-500.0,0.00011041,2]
[353180650,1739633449798,-500.0,0.00011041,2]
[353180651,1739633449807,-500.0,0.00011041,2]
[353180652,1739633449816,-638.65,0.00011041,2]
[353180653,1739633449826,-500.0,0.00011041,2]
[353180654,1739633449836,-431.31095712,0.00011041,2]
[353180655,1739633449846,-500.0,0.00011041,2]
[353180656,1739633449856,-500.0,0.00011041,2]
[353180657,1739633449865,-500.0,0.00011041,2]
[353180658,1739633449874,-500.0,0.00011041,2]
[353180659,1739633449885,-500.0,0.00011041,2]
[353180660,1739633449895,-500.0,0.00011041,2]
[353180661,1739633449905,-500.0,0.00011041,2]
[353180662,1739633449914,-500.0,0.00011041,2]
[353180663,1739633449924,-500.0,0.00011041,2]
[353180664,1739633449934,-500.0,0.00011041,2]
[353180665,1739633449943,-500.0,0.00011041,2]
[353180666,1739633449954,-373.22,0.00011041,2]
[353180667,1739633449967,-500.0,0.00011041,2]
[353180668,1739633449976,-500.0,0.00011041,2]
[353180669,1739633449985,-500.0,0.00011041,2]
[353180670,1739633449995,-405.36660524,0.00011041,2]
[353180671,1739633450004,-500.0,0.00011041,2]
[353180672,1739633450014,-500.0,0.00011041,2]
[353180673,1739633450023,-500.0,0.00011041,2]
[353180674,1739633450033,-500.0,0.00011041,2]
[353180675,1739633450042,-633.67,0.00011041,2]
[353180676,1739633450052,-500.0,0.00011041,2]
[353180677,1739633450061,-500.0,0.00011041,2]
[353180678,1739633450070,-500.0,0.00011041,2]
[353180679,1739633450080,-500.0,0.00011041,2]
[353180680,1739633450089,-500.0,0.00011041,2]
[353180681,1739633450098,-500.0,0.00011041,2]
[353180682,1739633450107,-500.0,0.00011041,2]
[353180683,1739633450117,-500.0,0.00011041,2]
[353180684,1739633450126,-355.87615385,0.00011041,2]
[353180685,1739633450137,-500.0,0.00011041,2]
[353180686,1739633450146,-500.0,0.00011041,2]
[353180687,1739633450155,-500.0,0.00011041,2]
[353180688,1739633450165,-500.0,0.00011041,2]
[353180689,1739633450174,-500.0,0.00011041,2]
[353180690,1739633450184,-500.0,0.00011041,2]
[353180691,1739633450193,-500.0,0.00011041,2]
[353180692,1739633450203,-500.0,0.00011041,2]
[353180693,1739633450213,-500.0,0.00011041,2]
[353180694,1739633450222,-500.0,0.00011041,2]
[353180695,1739633450231,-500.0,0.00011041,2]
[353180696,1739633450240,-500.0,0.00011041,2]
[353180697,1739633450250,-500.0,0.00011041,2]
[353180698,1739633450260,-500.0,0.00011041,2]
[353180699,1739633450270,-500.0,0.00011041,2]
[353180700,1739633450279,-500.0,0.00011041,2]
[353180701,1739633450292,-500.0,0.00011041,2]
[353180702,1739633450302,-500.0,0.00011041,2]
[353180703,1739633450311,-500.0,0.00011041,2]